fUSD/lending_fUSD_20240218
["ID","MTS","AMOUNT","RATE_DAILY","PERIOD"]
[314365454,1708236646347,-817.64962032,0.00037976,2]
[314365455,1708236646357,-500.0,0.00037976,2]
[314365456,1708236646367,-500.0,0.00037976,2]
[314365457,1708236646376,-500.0,0.00037976,2]
[314365458,1708236646386,-575.67426858,0.00037976,2]
[314365459,1708236646395,-944.61,0.00037976,2]
[314365460,1708236646405,-475.72555642,0.00037976,2]
[314365461,1708236646414,-500.0,0.00037976,2]
[314365462,1708236646423,-513.66888968,0.00037976,2]
[314365463,1708236646432,-500.0,0.00037976,2]
[314365464,1708236646442,-500.0,0.00037976,2]
[314365465,1708236646452,-500.0,0.00037976,2]
[314365466,1708236646461,-500.0,0.00037976,2]
[314365467,1708236646471,-500.0,0.00037976,2]
[314365468,1708236646481,-500.0,0.00037976,2]
[314365469,1708236646490,-500.0,0.00037976,2]
[314365470,1708236646499,-501.14860533,0.00037976,2]
[314365471,1708236646509,-500.0,0.00037976,2]
[314365472,1708236646519,-500.0,0.00037976,2]
[314365473,1708236646528,-638.26,0.00037976,2]
[314365474,1708236646538,-523.21454165,0.00037976,2]
[314365475,1708236646548,-574.28889321,0.00037976,2]
[314365476,1708236646557,-500.0,0.00037976,2]
[314365477,1708236646566,-538.70582764,0.00037976,2]
[314365478,1708236646576,-594.6637485,0.00037976,2]
[314365479,1708236646586,-500.0,0.00037976,2]
[314365480,1708236646595,-500.0,0.00037976,2]
[314365481,1708236646604,-536.03532075,0.00037976,2]
[314365482,1708236646614,-546.42330124,0.00037976,2]
[314365483,1708236646623,-500.0,0.00037976,2]
[314365484,1708236646632,-500.0,0.00037976,2]
[314365485,1708236646643,-500.0,0.00037976,2]
[314365486,1708236646652,-2056.48,0.00037976,2]
[314365487,1708236646661,-500.0,0.00037976,2]
[314365488,1708236646671,-506.07296974,0.00037976,2]
[314365489,1708236646680,-2287.59,0.00037976,2]
[314365490,1708236646690,-500.0,0.00037976,2]
[314365491,1708236646699,-542.09037494,0.00037976,2]
[314365492,1708236646708,-500.0,0.00037976,2]
[314365493,1708236646717,-515.74564032,0.00037976,2]
[314365494,1708236646726,-524.12887035,0.00037976,2]
[314365495,1708236646735,-500.0,0.00037976,2]
[314365496,1708236646744,-520.11975069,0.00037976,2]
[314365497,1708236646754,-563.92306374,0.00037976,2]
[314365498,1708236646763,-500.0,0.00037976,2]
[314365499,1708236646772,-552.41430801,0.00037976,2]
[314365500,1708236646782,-500.0,0.00037976,2]
[314365501,1708236646791,-500.0,0.00037976,2]
[314365502,1708236646800,-544.38135035,0.00037976,2]
[314365503,1708236646809,-500.0,0.00037976,2]
[314365504,1708236646819,-500.0,0.00037976,2]
[314365505,1708236646828,-519.08944803,0.00037976,2]
[314365506,1708236646837,-561.53574121,0.00037976,2]
[314365507,1708236646846,-500.0,0.00037976,2]
[314365508,1708236646855,-548.45357642,0.00037976,2]
[314365509,1708236646865,-500.0,0.00037976,2]
[314365510,1708236646874,-500.0,0.00037976,2]
[314365511,1708236646883,-500.0,0.00037976,2]
[314365512,1708236646894,-500.0,0.00037976,2]
[314365513,1708236646903,-512.48463693,0.00037976,2]
[314365514,1708236646912,-500.0,0.00037976,2]
[314365515,1708236646921,-500.0,0.00037976,2]
[314365516,1708236646930,-497.78692081,0.00037976,2]
[314365517,1708236646939,-500.0,0.00037976,2]
[314365518,1708236646948,-531.24,0.00037976,2]
[314365519,1708236646957,-500.0,0.00037976,2]
[314365520,1708236646967,-535.78277212,0.00037976,2]
[314365521,1708236646976,-500.58019439,0.00037976,2]
[314365522,1708236646986,-500.0,0.00037976,2]
[314365523,1708236646995,-511.54122005,0.00037976,2]
[314365524,1708236647004,-522.88793842,0.00037976,2]
[314365525,1708236647014,-768.26,0.00037976,2]
[314365526,1708236647023,-500.0,0.00037976,2]
[314365527,1708236647032,-560.03143046,0.00037976,2]
[314365528,1708236647041,-500.0,0.00037976,2]
[314365529,1708236647050,-500.0,0.00037976,2]
[314365530,1708236647060,-500.0,0.00037976,2]
[314365531,1708236647069,-515.28993616,0.00037976,2]
[314365532,1708236647078,-500.0,0.00037976,2]
[314365533,1708236647087,-526.40083709,0.00037976,2]
[314365534,1708236647096,-525.7797408,0.00037976,2]
[314365535,1708236647105,-500.0,0.00037976,2]
[314365536,1708236647116,-500.0,0.00037976,2]
[314365537,1708236647125,-500.0,0.00037976,2]
[314365538,1708236647134,-500.0,0.00037976,2]
[314365539,1708236647144,-511.04020692,0.00037976,2]
[314365540,1708236647153,-48.24028613,0.00037976,2]
[314365541,1708236647177,-482.68004846,0.00037976,2]
[314365542,1708236647189,-2.78506877,0.00037976,2]
[314365543,1708236647198,-500.0,0.00037976,2]
[314365544,1708236647207,-190.86339078,0.00037976,2]
[314365545,1708236647639,-500.0,0.00037899,2]
[314365546,1708236647649,-500.0,0.00037975,2]
[314365547,1708236647658,-327.78273885,0.00037976,2]
[314365548,1708236647667,-500.0,0.00037976,2]
[314365549,1708236647676,-454.85686231,0.00037976,2]
[314365550,1708236647686,-500.0,0.00037976,2]
[314365551,1708236647695,-819.64,0.00037976,2]
[314365552,1708236647704,-528.70054421,0.00037976,2]
[314365553,1708236647713,-500.0,0.00037976,2]
[314365554,1708236647723,-3430.77,0.00037976,2]
[314365555,1708236647732,-500.0,0.00037976,2]
[314365556,1708236647741,-500.0,0.00037976,2]
[314365557,1708236647750,-554.17299814,0.00037976,2]
[314365558,1708236647760,-515.09361601,0.00037976,2]
[314365559,1708236647769,-500.0,0.00037976,2]
[314365560,1708236647778,-1405.48,0.00037976,2]
[314365561,1708236647787,-500.0,0.00037976,2]
[314365562,1708236647796,-500.0,0.00037976,2]
[314365563,1708236647805,-515.76053741,0.00037976,2]
[314365564,1708236647814,-500.0,0.00037976,2]
[314365565,1708236647823,-500.0,0.00037976,2]
[314365566,1708236647832,-500.0,0.00037976,2]
[314365567,1708236647841,-274.86663624,0.00037976,2]
[314365568,1708236647850,-577.1092422,0.00037976,2]
[314365569,1708236647859,-520.56223726,0.00037976,2]
[314365570,1708236647868,-500.0,0.00037976,2]
[314365571,1708236647877,-500.0,0.00037976,2]
[314365572,1708236647886,-517.62016181,0.00037976,2]
[314365573,1708236647896,-500.0,0.00037976,2]
[314365574,1708236647945,-500.0,0.00037976,2]
[314365575,1708236647954,-517.9123742,0.00037976,2]
[314365576,1708236647964,-500.0,0.00037976,2]
[314365577,1708236647973,-500.0,0.00037976,2]
[314365578,1708236647983,-512.05036346,0.00037976,2]
[314365579,1708236647992,-500.0,0.00037976,2]
[314365580,1708236648001,-500.0,0.00037976,2]
[314365581,1708236648010,-634.71,0.00037976,2]
[314365582,1708236648019,-500.0,0.00037976,2]
[314365583,1708236648028,-550.57043364,0.00037976,2]
[314365584,1708236648037,-500.0,0.00037976,2]
[314365585,1708236648045,-500.0,0.00037976,2]
[314365586,1708236648055,-562.31659325,0.00037976,2]
[314365587,1708236648063,-500.0,0.00037976,2]
[314365588,1708236648073,-554.31588857,0.00037976,2]
[314365589,1708236648082,-500.0,0.00037976,2]
[314365590,1708236648091,-500.0,0.00037976,2]
[314365591,1708236648101,-500.0,0.00037976,2]
[314365592,1708236648110,-500.0,0.00037976,2]
[314365593,1708236648120,-500.0,0.00037976,2]
[314365594,1708236648129,-500.0,0.00037976,2]
[314365595,1708236648138,-500.0,0.00037976,2]
[314365596,1708236648147,-310.81111991,0.00037976,2]
[314365597,1708236648157,-500.0,0.00037976,2]
[314365598,1708236648166,-500.0,0.00037976,2]
[314365599,1708236648175,-500.0,0.00037976,2]
[314365600,1708236648184,-619.98,0.00037976,2]
[314365601,1708236648195,-500.0,0.00037976,2]
[314365602,1708236648204,-706.12,0.00037976,2]
[314365603,1708236648214,-500.0,0.00037976,2]
[314365604,1708236648225,-1025.36,0.00037976,2]
[314365605,1708236648234,-500.0,0.00037976,2]
[314365606,1708236648243,-500.0,0.00037976,2]
[314365607,1708236648253,-500.0,0.00037976,2]
[314365608,1708236648263,-500.0,0.00037976,2]
[314365609,1708236648272,-500.0,0.00037976,2]
[314365610,1708236648284,-500.0,0.00037976,2]
[314365611,1708236648293,-500.0,0.00037976,2]
[314365612,1708236648303,-500.0,0.00037976,2]
[314365613,1708236648312,-500.0,0.00037976,2]
[314365614,1708236648322,-500.0,0.00037976,2]
[314365615,1708236648330,-500.0,0.00037976,2]
[314365616,1708236648339,-5111.73,0.00037976,2]
[314365617,1708236648348,-525.63112663,0.00037976,2]
[314365618,1708236648358,-1485.19,0.00037976,2]
[314365619,1708236648368,-500.0,0.00037976,2]
[314365620,1708236648377,-500.0,0.00037976,2]
[314365621,1708236648386,-2323.82,0.00037976,2]
[314365622,1708236648395,-535.38692978,0.00037976,2]
[314365623,1708236648403,-500.0,0.00037976,2]
[314365624,1708236648412,-532.9483548,0.00037976,2]
[314365625,1708236648422,-500.0,0.00037976,2]
[314365626,1708236648431,-505.52697871,0.00037976,2]
[314365627,1708236648441,-500.0,0.00037976,2]
[314365628,1708236648450,-500.0,0.00037976,2]
[314365629,1708236648460,-373.15614248,0.00037976,2]
[314365630,1708236648469,-500.0,0.00037976,2]
[314365631,1708236648478,-500.0,0.00037976,2]
[314365632,1708236648488,-500.0,0.00037976,2]
[314365633,1708236648497,-324.89712015,0.00037976,2]
[314365634,1708236648511,-175.10287985,0.00037976,2]
[314365635,1708236648520,-500.0,0.00037976,2]
[314365636,1708236648530,-619.37811514,0.00037976,2]
[314365637,1708236648539,-113.91630911,0.00037976,2]
[314365638,1708236648574,-386.08369089,0.00037976,2]
[314365639,1708236648583,-500.0,0.00037976,2]
[314365640,1708236648592,-500.0,0.00037976,2]
[314365641,1708236648601,-500.0,0.00037976,2]
[314365642,1708236648610,-500.0,0.00037976,2]
[314365643,1708236648619,-500.0,0.00037976,2]
[314365644,1708236648628,-500.0,0.00037976,2]
[314365645,1708236648638,-500.0,0.00037976,2]
[314365646,1708236648647,-500.0,0.00037976,2]
[314365647,1708236648656,-500.0,0.00037976,2]
[314365648,1708236648666,-500.0,0.00037976,2]
[314365649,1708236648675,-500.0,0.00037976,2]
[314365650,1708236648684,-728.65288321,0.00037976,2]
[314365651,1708236648696,-445.44711679,0.00037976,2]
[314365652,1708236648706,-540.36,0.00037976,2]
[314365653,1708236648716,-562.73984988,0.00037976,2]
[314365654,1708236648726,-500.0,0.00037976,2]
[314365655,1708236648735,-500.0,0.00037976,2]
[314365656,1708236648745,-500.0,0.00037976,2]
[314365657,1708236648754,-520.22235008,0.00037976,2]
[314365658,1708236648766,-3.35566,0.00037976,2]
[314365659,1708236648775,-500.0,0.00037976,2]
[314365660,1708236648784,-586.9,0.00037976,2]
[314365661,1708236648794,-500.0,0.00037976,2]
[314365662,1708236648803,-160.57791619,0.00037976,2]
[314365663,1708236648812,-315.14814046,0.00037976,2]
[314365664,1708236648821,-500.0,0.00037976,2]
[314365665,1708236648831,-500.0,0.00037976,2]
[314365666,1708236648840,-500.0,0.00037976,2]
[314365667,1708236648849,-500.0,0.00037976,2]
[314365668,1708236648858,-747.96,0.00037976,2]
[314365669,1708236648867,-327.41926335,0.00037976,2]
[314365670,1708236648879,-188.65315071,0.00037976,2]
[314365671,1708236648889,-500.0,0.00037976,2]
[314365672,1708236648898,-500.0,0.00037976,2]
[314365673,1708236648908,-500.0,0.00037976,2]
[314365674,1708236648917,-500.0,0.00037976,2]
[314365675,1708236648926,-500.0,0.00037976,2]
[314365676,1708236648935,-46.08784929,0.00037976,2]
[314365677,1708236648946,-453.91215071,0.00037976,2]
[314365678,1708236648955,-500.0,0.00037976,2]
[314365679,1708236648964,-500.0,0.00037976,2]
[314365680,1708236648973,-167.41997124,0.00037976,2]
[314365688,1708237831426,-284.83040661,0.00034613,4]
[314365689,1708237831437,-1408.13948869,0.00034614,2]
[314365690,1708237831446,-292.84,0.0003463,2]
[314365691,1708237831455,-1000.0,0.000356,2]
[314365692,1708237831464,-207.0,0.00036,2]
[314365693,1708237831473,-1031.99,0.0003631,2]
[314365694,1708237831482,-161.69,0.00036433,2]
[314365695,1708237831491,-172.58,0.00036437,2]
[314365696,1708237831500,-2000.0,0.0003648,2]
[314365697,1708237831509,-360.0,0.00036483,2]
[314365698,1708237831519,-250.0,0.00036512,2]
[314365699,1708237831529,-633.3301047,0.00036524,2]
[314365700,1708237831546,-6.6698953,0.00036524,2]
[314365701,1708237831557,-181.77,0.00036624,2]
[314365702,1708237831566,-152.25040576,0.00036654,2]
[314365703,1708237831575,-311.51,0.00036654,2]
[314365704,1708237831585,-300.0,0.00036772,2]
[314365705,1708237831594,-150.0,0.00036823,2]
[314365706,1708237831603,-165.62,0.00036824,2]
[314365707,1708237831616,-292.84,0.00036894,2]
[314365708,1708237831625,-150.0,0.00037374,2]
[314365709,1708237831634,-150.0,0.00037418,2]
[314365710,1708237831643,-150.0,0.00037465,2]
[314365711,1708237831652,-1636.0,0.000375,2]
[314365712,1708237831662,-150.0,0.00037521,2]
[314365713,1708237831671,-1120.0271432,0.00037522,2]
[314365714,1708237831681,-236.98675574,0.00037577,2]
[314365715,1708237831694,-562.4996314,0.00037577,2]
[314365716,1708237831705,-8730.2749587,0.00037577,2]
[314365717,1708237831715,-154.60920144,0.00037577,2]
[314365718,1708237831724,-150.0,0.00037604,2]
[314365719,1708237831733,-150.0,0.00037635,2]
[314365720,1708237831743,-150.0,0.00037673,2]
[314365721,1708237831752,-165.81409443,0.00037676,8]
[314365722,1708237831762,-70048.57414872,0.00037677,2]
[314365723,1708237831788,-972.94266333,0.00037677,2]
[314365724,1708237831800,-261.15578167,0.00037677,2]
[314365725,1708237831813,-500.0,0.00037677,2]
[314365726,1708237831826,-350.0,0.00037677,2]
[314366027,1708237840814,-150.0,0.00037658,2]
[314366029,1708237840824,-129.67797469,0.00037677,2]
[314366262,1708237845628,-21668.80393139,0.00037677,2]
[314366303,1708239031640,-284.83040661,0.00032998,4]
[314366304,1708239031650,-1299.75654411,0.00032998,2]
[314366305,1708239031663,-108.38294458,0.00032998,2]
[314366306,1708239031673,-192.58322233,0.00032999,4]
[314366307,1708239031684,-25.79955379,0.00032999,4]
[314366308,1708239031693,-659.52391044,0.00032999,4]
[314366309,1708239031705,-320.99544775,0.00032999,4]
[314366310,1708239031716,-338.52846269,0.00032999,4]
[314366311,1708239031725,-659.52391044,0.00032999,4]
[314366312,1708239031734,-659.52391044,0.00032999,4]
[314366313,1708239031743,-659.52391044,0.00032999,4]
[314366314,1708239031752,-659.52391044,0.00032999,4]
[314366315,1708239031761,-207.0,0.00033,2]
[314366316,1708239031771,-291.09,0.00034019,2]
[314366317,1708239031780,-174947.37723126,0.00034799,2]
[314366318,1708239031789,-12196.855747,0.000348,2]
[314366319,1708239031799,-37274.744295,0.000348,2]
[314366320,1708239031809,-2118.133511,0.000348,2]
[314366321,1708239031818,-333.0,0.00035,2]
[314366322,1708239031827,-1030.40559916,0.00035699,2]
[314366323,1708239031837,-275.82067019,0.00035787,2]
[314366324,1708239031845,-62813.97267067,0.00035797,2]
[314366325,1708239031865,-455.94522447,0.00035797,2]
[314366326,1708239031888,-1092.88854855,0.00035797,2]
[314366327,1708239031899,-10478.5838223,0.00035797,2]
[314366328,1708239031911,-1504.13245275,0.00035797,2]
[314366329,1708239031922,-852.59213198,0.00035797,2]
[314366330,1708239031943,-1183.64619781,0.00035797,2]
[314366331,1708239031959,-580.25081736,0.00035797,2]
[314366332,1708239037730,-500.0,0.00035796,2]
[314366333,1708239037740,-500.0,0.00035796,2]
[314366334,1708239037749,-377441.16205792,0.00035797,2]
[314366335,1708239037759,-500.0,0.00035799,2]
[314366336,1708239037768,-18295.283621,0.000358,2]
[314366337,1708239037777,-55912.116443,0.000358,2]
[314366338,1708239037786,-3177.200267,0.000358,2]
[314366339,1708239037795,-2990.0,0.00035896,2]
[314366340,1708239037805,-859.99,0.00035913,2]
[314366341,1708239037814,-250.0,0.00035942,2]
[314366342,1708239037824,-288.0,0.00035958,2]
[314366343,1708239037834,-152.98,0.00036019,2]
[314366344,1708239037844,-2000.0,0.00036117,2]
[314366345,1708239037853,-175.95,0.00036145,2]
[314366346,1708239037863,-499.99,0.00036145,2]
[314366347,1708239037873,-158.36,0.00036218,2]
[314366348,1708239037882,-163.4,0.00036227,2]
[314366349,1708239038117,-712.0,0.00036231,2]
[314366350,1708239038128,-291.09,0.00036283,2]
[314366351,1708239038138,-159.93,0.00036372,2]
[314366352,1708239038148,-333.0,0.00036408,2]
[314366353,1708239038157,-159.93,0.00036564,2]
[314366354,1708239038167,-163.4,0.00036605,2]
[314366355,1708239038176,-150.0,0.00036692,2]
[314366356,1708239038186,-540.0516594,0.000367,2]
[314366357,1708239038196,-159.93,0.00036755,2]
[314366358,1708239038207,-150.73451339,0.0003678,2]
[314366359,1708239038216,-150.0,0.00036781,2]
[314366360,1708239038225,-24393.711495,0.000368,2]
[314366361,1708239038234,-74549.488591,0.000368,2]
[314366362,1708239038244,-4236.267023,0.000368,2]
[314366363,1708239038253,-150.0,0.0003682,2]
[314366364,1708239038262,-150.0,0.00036836,2]
[314366365,1708239038272,-254.52701593,0.0003689,2]
[314366366,1708239038281,-354.76,0.00036899,2]
[314366367,1708239038291,-509.37361083,0.00036899,2]
[314366368,1708239038301,-540.05165937,0.0003692,2]
[314366369,1708239038310,-150.0,0.00036932,2]
[314366370,1708239038319,-159.93,0.00036946,2]
[314366371,1708239038328,-150.0,0.0003697,2]
[314366372,1708239038338,-163.4,0.00036982,2]
[314366373,1708239038347,-150.0,0.00036994,2]
[314366374,1708239038356,-672.69,0.00037,30]
[314366375,1708239038366,-1000.0,0.00037,7]
[314366376,1708239038375,-1000.0,0.00037,7]
[314366378,1708239038384,-1000.0,0.00037,7]
[314366379,1708239038394,-1000.0,0.00037,6]
[314366380,1708239038403,-159.93,0.00037138,2]
[314366382,1708239038413,-540.05165937,0.00037139,2]
[314366383,1708239038422,-1116.70043818,0.00037181,2]
[314366384,1708239038431,-150.0,0.0003719,2]
[314366385,1708239038440,-150.0,0.00037192,2]
[314366387,1708239038450,-150.0,0.00037207,2]
[314366388,1708239038460,-1126.37481187,0.00037263,2]
[314366390,1708239038469,-1030.40559902,0.00037278,2]
[314366391,1708239038478,-150.0,0.0003731,2]
[314366392,1708239038487,-159.93,0.00037329,2]
[314366394,1708239038496,-152.0,0.00037333,3]
[314366395,1708239038505,-540.05165937,0.00037359,2]
[314366396,1708239038514,-163.4,0.0003736,2]
[314366398,1708239038523,-150.0,0.00037367,2]
[314366399,1708239038532,-201.69085419,0.00037371,2]
[314366401,1708239038541,-165.81409443,0.00037373,8]
[314366402,1708239038550,-150.0,0.00037388,2]
[314366403,1708239038560,-150.0,0.00037405,2]
[314366405,1708239038569,-150.0,0.00037416,2]
[314366406,1708239038578,-183.0,0.00037448,2]
[314366408,1708239038588,-500.0,0.0003747,2]
[314366409,1708239038597,-846.77,0.00037471,2]
[314366410,1708239038607,-530.48789629,0.00037471,2]
[314366412,1708239038616,-500.0,0.00037471,2]
[314366413,1708239038625,-559.71364004,0.00037471,2]
[314366415,1708239038635,-500.0,0.00037471,2]
[314366416,1708239038643,-509.09011388,0.00037471,2]
[314366417,1708239038653,-527.08048133,0.00037471,2]
[314366419,1708239038663,-528.65108572,0.00037471,2]
[314366420,1708239038672,-532.38791156,0.00037471,2]
[314366422,1708239038681,-500.0,0.00037471,2]
[314366423,1708239038691,-541.0802173,0.00037471,2]
[314366424,1708239038700,-500.0,0.00037471,2]
[314366426,1708239038710,-545.84487164,0.00037471,2]
[314366427,1708239038719,-558.82344736,0.00037471,2]
[314366429,1708239038729,-524.90327295,0.00037471,2]
[314366430,1708239038738,-526.48776376,0.00037471,2]
[314366431,1708239038747,-500.0,0.00037471,2]
[314366433,1708239038756,-537.20652811,0.00037471,2]
[314366434,1708239038765,-548.17942011,0.00037471,2]
[314366436,1708239038774,-500.0,0.00037471,2]
[314366437,1708239038783,-500.0,0.00037471,2]
[314366438,1708239038792,-537.55749249,0.00037471,2]
[314366440,1708239038801,-500.0,0.00037471,2]
[314366441,1708239038811,-534.54089979,0.00037471,2]
[314366442,1708239038820,-500.0,0.00037471,2]
[314366444,1708239038829,-534.41165103,0.00037471,2]
[314366445,1708239038839,-183.17469859,0.00037471,2]
[314366446,1708239038848,-213.557388,0.00037471,2]
[314366448,1708239038857,-563.08412692,0.00037471,2]
[314366449,1708239038866,-500.0,0.00037471,2]
[314366450,1708239038876,-905.25,0.00037471,2]
[314366452,1708239038885,-500.0,0.00037471,2]
[314366453,1708239038894,-500.0,0.00037471,2]
[314366455,1708239038903,-443.77079505,0.00037471,2]
[314366456,1708239038912,-500.0,0.00037471,2]
[314366457,1708239038921,-500.0,0.00037471,2]
[314366459,1708239038931,-500.0,0.00037471,2]
[314366460,1708239038940,-500.0,0.00037471,2]
[314366462,1708239038953,-500.0,0.00037471,2]
[314366463,1708239038962,-577.66869672,0.00037471,2]
[314366464,1708239038971,-552.61120323,0.00037471,2]
[314366465,1708239038981,-500.0,0.00037471,2]
[314366466,1708239038990,-500.0,0.00037471,2]
[314366467,1708239038999,-500.0,0.00037471,2]
[314366468,1708239039009,-500.0,0.00037471,2]
[314366469,1708239039019,-554.12341206,0.00037471,2]
[314366470,1708239039028,-500.0,0.00037471,2]
[314366471,1708239039039,-500.0,0.00037471,2]
[314366472,1708239039049,-500.0,0.00037471,2]
[314366473,1708239039058,-500.0,0.00037471,2]
[314366474,1708239039067,-3144.87,0.00037471,2]
[314366475,1708239039076,-500.0,0.00037471,2]
[314366476,1708239039086,-540.47932798,0.00037471,2]
[314366477,1708239039095,-500.0,0.00037471,2]
[314366478,1708239039106,-500.0,0.00037471,2]
[314366479,1708239039116,-1346.92,0.00037471,2]
[314366480,1708239039125,-500.0,0.00037471,2]
[314366481,1708239039134,-261.17515246,0.00037471,2]
[314366482,1708239039143,-500.0,0.00037471,2]
[314366483,1708239039153,-500.0,0.00037471,2]
[314366484,1708239039162,-500.0,0.00037471,2]
[314366485,1708239039171,-500.0,0.00037471,2]
[314366486,1708239039180,-500.0,0.00037471,2]
[314366487,1708239039189,-500.0,0.00037471,2]
[314366488,1708239039199,-500.0,0.00037471,2]
[314366489,1708239039210,-519.6496176,0.00037471,2]
[314366490,1708239039219,-500.0,0.00037471,2]
[314366491,1708239039228,-500.0,0.00037471,2]
[314366492,1708239039239,-568.32,0.00037471,2]
[314366493,1708239039248,-500.0,0.00037471,2]
[314366494,1708239039258,-500.0,0.00037471,2]
[314366495,1708239039267,-500.0,0.00037471,2]
[314366496,1708239039278,-500.0,0.00037471,2]
[314366497,1708239039287,-500.0,0.00037471,2]
[314366498,1708239039297,-576.70137101,0.00037471,2]
[314366499,1708239039306,-500.0,0.00037471,2]
[314366500,1708239039315,-500.0,0.00037471,2]
[314366501,1708239039324,-572.20394828,0.00037471,2]
[314366502,1708239039333,-533.73643002,0.00037471,2]
[314366503,1708239039343,-4685.75,0.00037471,2]
[314366504,1708239039352,-558.52058267,0.00037471,2]
[314366505,1708239039361,-500.0,0.00037471,2]
[314366506,1708239039370,-1441.89,0.00037471,2]
[314366507,1708239039379,-570.02412916,0.00037471,2]
[314366508,1708239039389,-500.0,0.00037471,2]
[314366509,1708239039398,-2041.4,0.00037471,2]
[314366510,1708239039407,-563.45889048,0.00037471,2]
[314366511,1708239039417,-541.0160703,0.00037471,2]
[314366512,1708239039426,-500.0,0.00037471,2]
[314366513,1708239039435,-500.0,0.00037471,2]
[314366514,1708239039444,-500.0,0.00037471,2]
[314366515,1708239039454,-504.88665465,0.00037471,2]
[314366516,1708239039463,-500.0,0.00037471,2]
[314366517,1708239039473,-336.96106893,0.00037471,2]
[314366518,1708239039483,-500.0,0.00037471,2]
[314366519,1708239039492,-515.94016133,0.00037471,2]
[314366520,1708239039502,-559.32,0.00037471,2]
[314366521,1708239039511,-500.0,0.00037471,2]
[314366522,1708239039521,-535.35412825,0.00037471,2]
[314366523,1708239039530,-1125.18,0.00037471,2]
[314366524,1708239039539,-15543.53,0.00037471,2]
[314366525,1708239039548,-500.0,0.00037471,2]
[314366526,1708239039557,-500.0,0.00037471,2]
[314366527,1708239039566,-528.68288759,0.00037471,2]
[314366528,1708239039576,-500.0,0.00037471,2]
[314366529,1708239039585,-500.0,0.00037471,2]
[314366530,1708239039595,-3504.04,0.00037471,2]
[314366531,1708239039603,-500.0,0.00037471,2]
[314366532,1708239039613,-500.0,0.00037471,2]
[314366533,1708239039622,-500.0,0.00037471,2]
[314366534,1708239039631,-3835.84,0.00037471,2]
[314366535,1708239039640,-535.8042921,0.00037471,2]
[314366536,1708239039649,-500.0,0.00037471,2]
[314366537,1708239039658,-500.0,0.00037471,2]
[314366538,1708239039667,-500.0,0.00037471,2]
[314366539,1708239039677,-500.0,0.00037471,2]
[314366540,1708239039686,-500.0,0.00037471,2]
[314366541,1708239039696,-500.0,0.00037471,2]
[314366542,1708239039706,-500.0,0.00037471,2]
[314366543,1708239039715,-500.0,0.00037471,2]
[314366544,1708239039724,-500.0,0.00037471,2]
[314366545,1708239039734,-513.08,0.00037471,2]
[314366546,1708239039743,-500.0,0.00037471,2]
[314366547,1708239039752,-500.0,0.00037471,2]
[314366548,1708239039762,-555.4259449,0.00037471,2]
[314366549,1708239039771,-55878.3701,0.00037472,2]
[314366550,1708239039781,-5000.0,0.00037474,3]
[314366551,1708239039790,-1000.0,0.00037474,2]
[314366552,1708239039800,-181.12970077,0.00037476,2]
[314366553,1708239039810,-1659.0,0.000375,2]
[314366554,1708239039819,-980.0,0.000375,7]
[314366555,1708239039828,-1052.0,0.000375,6]
[314366556,1708239039837,-1000.0,0.000375,6]
[314366557,1708239039846,-827.0,0.000375,7]